{"text_format":"1","workbook":"xlsx","n_sheets":2,"sheets":["Main","MasterSheet"],"not_rendered":{"charts":1,"images":1,"macros":1,"external_links":0,"defined_names":0,"comments":0,"pivot_tables":0},"unopened":[],"bounds":{"document_bytes":16777216,"sheet_cells":100000,"rows_first":2000,"rows_last":500,"rows_between":2000,"halvings":0,"cell_chars":16384,"cell_head_chars":4096},"cells_cut":0,"cells_raw":0,"read":"whole","date_system":"1900"}

{"sheet":"Main","index":0,"n_rows":42,"n_cols":9,"rows_kept":42,"cut":false,"hidden":false,"merged":[[2,1,2,8],[5,1,5,8],[8,1,8,8],[38,1,38,8],[6,1,6,6],[7,1,7,8],[12,2,12,7],[26,2,26,7],[33,2,33,7],[30,2,30,7],[28,2,28,3],[18,2,18,7],[40,1,40,8],[14,2,14,7],[42,1,42,8],[21,3,21,7],[39,1,39,8],[41,1,41,8]]}
[]
[]
[null,"E4980A Data Transfer Program"]
[null,null,null,null,null,null,null,null,"Rev.01.40"]
[]
[null,"This program (Excel VBA) transfers the list sweep measurement data from the E4980A to a PC"]
[null,"Perform the single trigger measurement before running this program"]
[null,"Enable “Macros” first since this file contains macros"]
[null,"For more details, refer to the operation manual\n"]
[]
[null,null,"Step-1"]
[]
[null,null,"Connect your PC with E4980A using either LAN, USB cable or USB/GPIB interface. To handshake with E4980A, type the VISA address of the E4980A, then click \"Handshake\" button. "]
[]
[null,null,"GPIB0::17::INSTR"]
[]
[]
[]
[null,null,"ハンドシェークをしましょう、というボタン。"]
[]
[null,null,"Connection Status"]
[]
[]
[]
[null,null,"Step-2"]
[]
[null,null,"Enter a new sheet name to transfer the list sweep measuement data, then click \"Load Data\" button. The data is transferred to the newly created sheet."]
[]
[null,null,null,null," <---  Enter a new sheet name"]
[]
[null,null,"データを取りん込みましょう、というボタン。"]
[]
[null,null,"Error Message"]
[]
[]
[]
[]
[null,"Note "]
[null,"* New sheet is created based on \"MasterSheet\". Do not change and delete the \"MasterSheet\" unless you modify this sample program"]
[null,"* When the sweep parameter is blank or “overload” message is shown on the E4980A, the data is shown as blank cells"]
[null,"* The measurement conditions displayed on the newly created sheet are the query results of the Meas. Setup settings and the list sweep type, which may differ from the actual measurement conditions (e.g. BIAS [V] such as 1 [V] is shown but it might not be applied in the case the DC Bias hardkey was not turned on during the measurement)"]
[null,"* Sheet name is restricted by the rule in Excel. When the error message is shown, refer to the Excel help file"]

{"sheet":"MasterSheet","index":1,"n_rows":209,"n_cols":8,"rows_kept":209,"cut":false,"hidden":false,"merged":[[2,6,2,7]]}
[]
[]
[null,"FUNC","xxx","RANGE","xxx",null,"Graph Parameter"]
[null,"FREQ [Hz]","xxx","BIAS [V]","xxx",null,"X",{"$f":"C8","v":"xxxx"}]
[null,"LEVEL [V]","xxx","MEAS TIME","xxx",null,"Y1",{"$f":"D6","v":"Meas1"}]
[null,"Sweep Parameter","xxxx","Meas1","Meas2",null,"Y2",{"$f":"E6","v":"Meas2"}]
[]
[null,"Point#",{"$f":"C6","v":"xxxx"},{"$f":"D6","v":"Meas1"},{"$f":"E6","v":"Meas2"},null,"X-axis","Dropdown List"]
[null,null,null,null,null,null,{"$f":"IF($H$4=$C$8,C9,IF(C9=\"\",\"\",B9))","v":0},{"$f":"B8","v":"Point#"}]
[null,null,null,null,null,null,0,{"$f":"C6","v":"xxxx"}]
[null,null,null,null,null,null,0]
[null,null,null,null,null,null,0]
[null,null,null,null,null,null,0]
[null,null,null,null,null,null,0]
[null,null,null,null,null,null,0]
[null,null,null,null,null,null,0]
[null,null,null,null,null,null,0]
[null,null,null,null,null,null,0]
[null,null,null,null,null,null,0]
[null,null,null,null,null,null,0]
[null,null,null,null,null,null,0]
[null,null,null,null,null,null,0]
[null,null,null,null,null,null,0]
[null,null,null,null,null,null,0]
[null,null,null,null,null,null,0]
[null,null,null,null,null,null,0]
[null,null,null,null,null,null,0]
[null,null,null,null,null,null,0]
[null,null,null,null,null,null,0]
[null,null,null,null,null,null,0]
[null,null,null,null,null,null,0]
[null,null,null,null,null,null,0]
[null,null,null,null,null,null,0]
[null,null,null,null,null,null,0]
[null,null,null,null,null,null,0]
[null,null,null,null,null,null,0]
[null,null,null,null,null,null,0]
[null,null,null,null,null,null,0]
[null,null,null,null,null,null,0]
[null,null,null,null,null,null,0]
[null,null,null,null,null,null,0]
[null,null,null,null,null,null,0]
[null,null,null,null,null,null,0]
[null,null,null,null,null,null,0]
[null,null,null,null,null,null,0]
[null,null,null,null,null,null,0]
[null,null,null,null,null,null,0]
[null,null,null,null,null,null,0]
[null,null,null,null,null,null,0]
[null,null,null,null,null,null,0]
[null,null,null,null,null,null,0]
[null,null,null,null,null,null,0]
[null,null,null,null,null,null,0]
[null,null,null,null,null,null,0]
[null,null,null,null,null,null,0]
[null,null,null,null,null,null,0]
[null,null,null,null,null,null,0]
[null,null,null,null,null,null,0]
[null,null,null,null,null,null,0]
[null,null,null,null,null,null,0]
[null,null,null,null,null,null,0]
[null,null,null,null,null,null,0]
[null,null,null,null,null,null,0]
[null,null,null,null,null,null,0]
[null,null,null,null,null,null,0]
[null,null,null,null,null,null,0]
[null,null,null,null,null,null,0]
[null,null,null,null,null,null,0]
[null,null,null,null,null,null,0]
[null,null,null,null,null,null,0]
[null,null,null,null,null,null,0]
[null,null,null,null,null,null,0]
[null,null,null,null,null,null,{"$f":"IF($H$4=$C$8,C73,IF(C73=\"\",\"\",B73))","v":0}]
[null,null,null,null,null,null,0]
[null,null,null,null,null,null,0]
[null,null,null,null,null,null,0]
[null,null,null,null,null,null,0]
[null,null,null,null,null,null,0]
[null,null,null,null,null,null,0]
[null,null,null,null,null,null,0]
[null,null,null,null,null,null,0]
[null,null,null,null,null,null,0]
[null,null,null,null,null,null,0]
[null,null,null,null,null,null,0]
[null,null,null,null,null,null,0]
[null,null,null,null,null,null,0]
[null,null,null,null,null,null,0]
[null,null,null,null,null,null,0]
[null,null,null,null,null,null,0]
[null,null,null,null,null,null,0]
[null,null,null,null,null,null,0]
[null,null,null,null,null,null,0]
[null,null,null,null,null,null,0]
[null,null,null,null,null,null,0]
[null,null,null,null,null,null,0]
[null,null,null,null,null,null,0]
[null,null,null,null,null,null,0]
[null,null,null,null,null,null,0]
[null,null,null,null,null,null,0]
[null,null,null,null,null,null,0]
[null,null,null,null,null,null,0]
[null,null,null,null,null,null,0]
[null,null,null,null,null,null,0]
[null,null,null,null,null,null,0]
[null,null,null,null,null,null,0]
[null,null,null,null,null,null,0]
[null,null,null,null,null,null,0]
[null,null,null,null,null,null,0]
[null,null,null,null,null,null,0]
[null,null,null,null,null,null,0]
[null,null,null,null,null,null,0]
[null,null,null,null,null,null,0]
[null,null,null,null,null,null,0]
[null,null,null,null,null,null,0]
[null,null,null,null,null,null,0]
[null,null,null,null,null,null,0]
[null,null,null,null,null,null,0]
[null,null,null,null,null,null,0]
[null,null,null,null,null,null,0]
[null,null,null,null,null,null,0]
[null,null,null,null,null,null,0]
[null,null,null,null,null,null,0]
[null,null,null,null,null,null,0]
[null,null,null,null,null,null,0]
[null,null,null,null,null,null,0]
[null,null,null,null,null,null,0]
[null,null,null,null,null,null,0]
[null,null,null,null,null,null,0]
[null,null,null,null,null,null,0]
[null,null,null,null,null,null,0]
[null,null,null,null,null,null,0]
[null,null,null,null,null,null,0]
[null,null,null,null,null,null,0]
[null,null,null,null,null,null,0]
[null,null,null,null,null,null,0]
[null,null,null,null,null,null,0]
[null,null,null,null,null,null,{"$f":"IF($H$4=$C$8,C137,IF(C137=\"\",\"\",B137))","v":0}]
[null,null,null,null,null,null,0]
[null,null,null,null,null,null,0]
[null,null,null,null,null,null,0]
[null,null,null,null,null,null,0]
[null,null,null,null,null,null,0]
[null,null,null,null,null,null,0]
[null,null,null,null,null,null,0]
[null,null,null,null,null,null,0]
[null,null,null,null,null,null,0]
[null,null,null,null,null,null,0]
[null,null,null,null,null,null,0]
[null,null,null,null,null,null,0]
[null,null,null,null,null,null,0]
[null,null,null,null,null,null,0]
[null,null,null,null,null,null,0]
[null,null,null,null,null,null,0]
[null,null,null,null,null,null,0]
[null,null,null,null,null,null,0]
[null,null,null,null,null,null,0]
[null,null,null,null,null,null,0]
[null,null,null,null,null,null,0]
[null,null,null,null,null,null,0]
[null,null,null,null,null,null,0]
[null,null,null,null,null,null,0]
[null,null,null,null,null,null,0]
[null,null,null,null,null,null,0]
[null,null,null,null,null,null,0]
[null,null,null,null,null,null,0]
[null,null,null,null,null,null,0]
[null,null,null,null,null,null,0]
[null,null,null,null,null,null,0]
[null,null,null,null,null,null,0]
[null,null,null,null,null,null,0]
[null,null,null,null,null,null,0]
[null,null,null,null,null,null,0]
[null,null,null,null,null,null,0]
[null,null,null,null,null,null,0]
[null,null,null,null,null,null,0]
[null,null,null,null,null,null,0]
[null,null,null,null,null,null,0]
[null,null,null,null,null,null,0]
[null,null,null,null,null,null,0]
[null,null,null,null,null,null,0]
[null,null,null,null,null,null,0]
[null,null,null,null,null,null,0]
[null,null,null,null,null,null,0]
[null,null,null,null,null,null,0]
[null,null,null,null,null,null,0]
[null,null,null,null,null,null,0]
[null,null,null,null,null,null,0]
[null,null,null,null,null,null,0]
[null,null,null,null,null,null,0]
[null,null,null,null,null,null,0]
[null,null,null,null,null,null,0]
[null,null,null,null,null,null,0]
[null,null,null,null,null,null,0]
[null,null,null,null,null,null,0]
[null,null,null,null,null,null,0]
[null,null,null,null,null,null,0]
[null,null,null,null,null,null,0]
[null,null,null,null,null,null,0]
[null,null,null,null,null,null,0]
[null,null,null,null,null,null,0]
[null,null,null,null,null,null,{"$f":"IF($H$4=$C$8,C201,IF(C201=\"\",\"\",B201))","v":0}]
[null,null,null,null,null,null,0]
[null,null,null,null,null,null,0]
[null,null,null,null,null,null,0]
[null,null,null,null,null,null,0]
[null,null,null,null,null,null,0]
[null,null,null,null,null,null,0]
[null,null,null,null,null,null,0]
[null,null,null,null,null,null,0]